{"text_format":"3","workbook":"xlsx","n_sheets":14,"sheets":["sugerencias","resumen","ene","feb","mar","abr","mayo","jun","jul","ago","sep","oct","nov","dic"],"not_rendered":{"charts":1,"defined_names":27},"read":"whole","date_system":"1900"}

{"sheet":"sugerencias","index":0,"n_rows":18,"n_cols":1,"rows_kept":18}
["SUGERENCIAS DE PLANTILLAS"]
["¿Hay una forma sencilla para saltar de la hoja de resumen de tendencias de gastos a los detalles de los gastos mensuales?"]
["Para desplazarse rápidamente a los gastos de un mes específico, haga clic en el vínculo de navegación asociado situado encima del gráfico, como el vínculo de navegación Ene de la celda B2. Después, para volver a la hoja de cálculo de tendencias de gastos, haga clic en el vínculo de navegación Resumen de la celda D1. "]
["Para volver a esta hoja de cálculo de sugerencias, en la hoja de cálculo de resumen, seleccione N2. En las hojas de cálculo de todos los meses, seleccione E1."]
["¿Cómo se agrega un nuevo tipo de gasto al resumen de los gastos o nuevos gastos mensuales?"]
["El resumen de los gastos situado bajo el gráfico y los detalles de los gastos de cada mes son tablas de Excel. Para agregar filas nuevas a una tabla de Excel, siga uno de estos procedimientos:"]
[{"$f":"ROW(A1)&\". Si la tabla no tiene una fila de total, comience a escribir debajo de la tabla y se expandirá automáticamente cuando presione la tecla ENTRAR o Tab.\"","v":"1. Si la tabla no tiene una fila de total, comience a escribir debajo de la tabla y se expandirá automáticamente cuando presione la tecla ENTRAR o Tab."}]
[{"$f":"ROW(A2)&\". Coloque el puntero de la celda en la última celda por encima de la fila de total, como el total de los últimos gastos, y después presione la tecla Tab.\"","v":"2. Coloque el puntero de la celda en la última celda por encima de la fila de total, como el total de los últimos gastos, y después presione la tecla Tab."}]
[{"$f":"ROW(A3)&\". Haga clic con el botón derecho en la tabla y, en el menú emergente, seleccione Insertar y después haga clic en Filas de tabla encima o Filas de tabla debajo.\"","v":"3. Haga clic con el botón derecho en la tabla y, en el menú emergente, seleccione Insertar y después haga clic en Filas de tabla encima o Filas de tabla debajo."}]
[{"$f":"ROW(A4)&\". En la esquina inferior derecha de la tabla, coloque el ratón en el controlador de tamaño de tabla y arrastre hacia abajo para aumentar el número de filas de tabla disponibles.\"","v":"4. En la esquina inferior derecha de la tabla, coloque el ratón en el controlador de tamaño de tabla y arrastre hacia abajo para aumentar el número de filas de tabla disponibles."}]
["Especifique el gasto en la hoja de cálculo de resumen, en la columna Gastos de la tabla de resumen de los gastos."]
["Agregue el importe de cada tipo de gasto en la hoja de cálculo del mes al que se aplica el gasto."]
["Por ejemplo: el \"Gasto 1\" se produce en los meses de enero a junio y en diciembre. "]
[{"$f":"ROW(A1)&\". Gastos 1 se escribe en la hoja de cálculo de resumen bajo Gastos en la tabla ExpenseSummary (como el título para el tipo de gastos)\"","v":"1. Gastos 1 se escribe en la hoja de cálculo de resumen bajo Gastos en la tabla ExpenseSummary (como el título para el tipo de gastos)"}]
[{"$f":"ROW(A2)&\". Para cada mes en el que se producen gastos, especifique la cantidad para el gasto en la hoja de cálculo del mes correspondiente.\"","v":"2. Para cada mes en el que se producen gastos, especifique la cantidad para el gasto en la hoja de cálculo del mes correspondiente."}]
[{"$f":"ROW(A3)&\". El tipo de gasto de la hoja de cálculo ExpenseSummary crea una lista de categorías para la columna Categoría en la hoja de cálculo de cada mes.\"","v":"3. El tipo de gasto de la hoja de cálculo ExpenseSummary crea una lista de categorías para la columna Categoría en la hoja de cálculo de cada mes."}]
[{"$f":"ROW(A4)&\". Utilice la lista de categorías en la columna Categoría para seleccionar el tipo de gasto correspondiente para el importe de gastos especificado.\"","v":"4. Utilice la lista de categorías en la columna Categoría para seleccionar el tipo de gasto correspondiente para el importe de gastos especificado."}]
[{"$f":"ROW(A5)&\". Para agregar nuevos gastos a un mes, agregue una nueva fila a la tabla ExpenseSummary en la hoja de cálculo de resumen, después escriba los detalles de gastos correspondientes en la hoja de cálculo del mes al que se aplican.\"","v":"5. Para agregar nuevos gastos a un mes, agregue una nueva fila a la tabla ExpenseSummary en la hoja de cálculo de resumen, después escriba los detalles de gastos correspondientes en la hoja de cálculo del mes al que se aplican."}]

{"sheet":"resumen","index":1,"n_rows":10,"n_cols":15,"rows_kept":10}
["TENDENCIAS DE GASTOS"]
[null,"Ene","Feb","Mar","Abr","May","Jun","Jul","Ago","Sep","Oct","Nov","Dic","Sugerencias"]
[]
["Gastos","Ene","Feb","Mar","Abr","May","Jun","Jul","Ago","Sep","Oct","Nov","Dic","Total","Tendencia"]
["Gasto 1",{"$f":"SUMIFS(ExpJan[Importe],ExpJan[Categoría],ExpenseSummary[Gastos])","v":{"v":33,"d":"33.00"}},{"$f":"SUMIFS(ExpFeb[Importe],ExpFeb[Categoría],ExpenseSummary[Gastos])","v":{"v":375,"d":"375.00"}},{"$f":"SUMIFS(ExpMar[Importe],ExpMar[Categoría],ExpenseSummary[Gastos])","v":{"v":33,"d":"33.00"}},{"$f":"SUMIFS(ExpApr[Importe],ExpApr[Categoría],ExpenseSummary[Gastos])","v":{"v":45,"d":"45.00"}},{"$f":"SUMIFS(ExpMay[Importe],ExpMay[Categoría],ExpenseSummary[Gastos])","v":{"v":375,"d":"375.00"}},{"$f":"SUMIFS(ExpJun[Importe],ExpJun[Categoría],ExpenseSummary[Gastos])","v":{"v":201,"d":"201.00"}},{"$f":"SUMIFS(ExpJul[Importe],ExpJul[Categoría],ExpenseSummary[Gastos])","v":{"v":0,"d":"0.00"}},{"$f":"SUMIFS(ExpAug[Importe],ExpAug[Categoría],ExpenseSummary[Gastos])","v":{"v":0,"d":"0.00"}},{"$f":"SUMIFS(ExpSep[Importe],ExpSep[Categoría],ExpenseSummary[Gastos])","v":{"v":0,"d":"0.00"}},{"$f":"SUMIFS(ExpOct[Importe],ExpOct[Categoría],ExpenseSummary[Gastos])","v":{"v":0,"d":"0.00"}},{"$f":"SUMIFS(ExpNov[Importe],ExpNov[Categoría],ExpenseSummary[Gastos])","v":{"v":0,"d":"0.00"}},{"$f":"SUMIFS(ExpDec[Importe],ExpDec[Categoría],ExpenseSummary[Gastos])","v":{"v":201,"d":"201.00"}},{"$f":"SUM(ExpenseSummary[[#This Row],[Ene]:[Dic]])","v":{"v":1263,"d":"1,263.00"}}]
["Gasto 2",{"$f":"SUMIFS(ExpJan[Importe],ExpJan[Categoría],ExpenseSummary[Gastos])","v":{"v":238,"d":"238.00"}},{"$f":"SUMIFS(ExpFeb[Importe],ExpFeb[Categoría],ExpenseSummary[Gastos])","v":{"v":238,"d":"238.00"}},{"$f":"SUMIFS(ExpMar[Importe],ExpMar[Categoría],ExpenseSummary[Gastos])","v":{"v":238,"d":"238.00"}},{"$f":"SUMIFS(ExpApr[Importe],ExpApr[Categoría],ExpenseSummary[Gastos])","v":{"v":123,"d":"123.00"}},{"$f":"SUMIFS(ExpMay[Importe],ExpMay[Categoría],ExpenseSummary[Gastos])","v":{"v":111,"d":"111.00"}},{"$f":"SUMIFS(ExpJun[Importe],ExpJun[Categoría],ExpenseSummary[Gastos])","v":{"v":98,"d":"98.00"}},{"$f":"SUMIFS(ExpJul[Importe],ExpJul[Categoría],ExpenseSummary[Gastos])","v":{"v":0,"d":"0.00"}},{"$f":"SUMIFS(ExpAug[Importe],ExpAug[Categoría],ExpenseSummary[Gastos])","v":{"v":0,"d":"0.00"}},{"$f":"SUMIFS(ExpSep[Importe],ExpSep[Categoría],ExpenseSummary[Gastos])","v":{"v":0,"d":"0.00"}},{"$f":"SUMIFS(ExpOct[Importe],ExpOct[Categoría],ExpenseSummary[Gastos])","v":{"v":0,"d":"0.00"}},{"$f":"SUMIFS(ExpNov[Importe],ExpNov[Categoría],ExpenseSummary[Gastos])","v":{"v":0,"d":"0.00"}},{"$f":"SUMIFS(ExpDec[Importe],ExpDec[Categoría],ExpenseSummary[Gastos])","v":{"v":440,"d":"440.00"}},{"$f":"SUM(ExpenseSummary[[#This Row],[Ene]:[Dic]])","v":{"v":1486,"d":"1,486.00"}}]
["Gasto 3",{"$f":"SUMIFS(ExpJan[Importe],ExpJan[Categoría],ExpenseSummary[Gastos])","v":{"v":110,"d":"110.00"}},{"$f":"SUMIFS(ExpFeb[Importe],ExpFeb[Categoría],ExpenseSummary[Gastos])","v":{"v":110,"d":"110.00"}},{"$f":"SUMIFS(ExpMar[Importe],ExpMar[Categoría],ExpenseSummary[Gastos])","v":{"v":110,"d":"110.00"}},{"$f":"SUMIFS(ExpApr[Importe],ExpApr[Categoría],ExpenseSummary[Gastos])","v":{"v":125,"d":"125.00"}},{"$f":"SUMIFS(ExpMay[Importe],ExpMay[Categoría],ExpenseSummary[Gastos])","v":{"v":333,"d":"333.00"}},{"$f":"SUMIFS(ExpJun[Importe],ExpJun[Categoría],ExpenseSummary[Gastos])","v":{"v":122,"d":"122.00"}},{"$f":"SUMIFS(ExpJul[Importe],ExpJul[Categoría],ExpenseSummary[Gastos])","v":{"v":0,"d":"0.00"}},{"$f":"SUMIFS(ExpAug[Importe],ExpAug[Categoría],ExpenseSummary[Gastos])","v":{"v":0,"d":"0.00"}},{"$f":"SUMIFS(ExpSep[Importe],ExpSep[Categoría],ExpenseSummary[Gastos])","v":{"v":0,"d":"0.00"}},{"$f":"SUMIFS(ExpOct[Importe],ExpOct[Categoría],ExpenseSummary[Gastos])","v":{"v":0,"d":"0.00"}},{"$f":"SUMIFS(ExpNov[Importe],ExpNov[Categoría],ExpenseSummary[Gastos])","v":{"v":0,"d":"0.00"}},{"$f":"SUMIFS(ExpDec[Importe],ExpDec[Categoría],ExpenseSummary[Gastos])","v":{"v":122,"d":"122.00"}},{"$f":"SUM(ExpenseSummary[[#This Row],[Ene]:[Dic]])","v":{"v":1032,"d":"1,032.00"}}]
["Gasto 4",{"$f":"SUMIFS(ExpJan[Importe],ExpJan[Categoría],ExpenseSummary[Gastos])","v":{"v":426,"d":"426.00"}},{"$f":"SUMIFS(ExpFeb[Importe],ExpFeb[Categoría],ExpenseSummary[Gastos])","v":{"v":84,"d":"84.00"}},{"$f":"SUMIFS(ExpMar[Importe],ExpMar[Categoría],ExpenseSummary[Gastos])","v":{"v":84,"d":"84.00"}},{"$f":"SUMIFS(ExpApr[Importe],ExpApr[Categoría],ExpenseSummary[Gastos])","v":{"v":426,"d":"426.00"}},{"$f":"SUMIFS(ExpMay[Importe],ExpMay[Categoría],ExpenseSummary[Gastos])","v":{"v":125,"d":"125.00"}},{"$f":"SUMIFS(ExpJun[Importe],ExpJun[Categoría],ExpenseSummary[Gastos])","v":{"v":187,"d":"187.00"}},{"$f":"SUMIFS(ExpJul[Importe],ExpJul[Categoría],ExpenseSummary[Gastos])","v":{"v":0,"d":"0.00"}},{"$f":"SUMIFS(ExpAug[Importe],ExpAug[Categoría],ExpenseSummary[Gastos])","v":{"v":0,"d":"0.00"}},{"$f":"SUMIFS(ExpSep[Importe],ExpSep[Categoría],ExpenseSummary[Gastos])","v":{"v":0,"d":"0.00"}},{"$f":"SUMIFS(ExpOct[Importe],ExpOct[Categoría],ExpenseSummary[Gastos])","v":{"v":0,"d":"0.00"}},{"$f":"SUMIFS(ExpNov[Importe],ExpNov[Categoría],ExpenseSummary[Gastos])","v":{"v":0,"d":"0.00"}},{"$f":"SUMIFS(ExpDec[Importe],ExpDec[Categoría],ExpenseSummary[Gastos])","v":{"v":187,"d":"187.00"}},{"$f":"SUM(ExpenseSummary[[#This Row],[Ene]:[Dic]])","v":{"v":1519,"d":"1,519.00"}}]
["Gasto 5",{"$f":"SUMIFS(ExpJan[Importe],ExpJan[Categoría],ExpenseSummary[Gastos])","v":{"v":54,"d":"54.00"}},{"$f":"SUMIFS(ExpFeb[Importe],ExpFeb[Categoría],ExpenseSummary[Gastos])","v":{"v":54,"d":"54.00"}},{"$f":"SUMIFS(ExpMar[Importe],ExpMar[Categoría],ExpenseSummary[Gastos])","v":{"v":109,"d":"109.00"}},{"$f":"SUMIFS(ExpApr[Importe],ExpApr[Categoría],ExpenseSummary[Gastos])","v":{"v":98,"d":"98.00"}},{"$f":"SUMIFS(ExpMay[Importe],ExpMay[Categoría],ExpenseSummary[Gastos])","v":{"v":33,"d":"33.00"}},{"$f":"SUMIFS(ExpJun[Importe],ExpJun[Categoría],ExpenseSummary[Gastos])","v":{"v":441,"d":"441.00"}},{"$f":"SUMIFS(ExpJul[Importe],ExpJul[Categoría],ExpenseSummary[Gastos])","v":{"v":0,"d":"0.00"}},{"$f":"SUMIFS(ExpAug[Importe],ExpAug[Categoría],ExpenseSummary[Gastos])","v":{"v":0,"d":"0.00"}},{"$f":"SUMIFS(ExpSep[Importe],ExpSep[Categoría],ExpenseSummary[Gastos])","v":{"v":0,"d":"0.00"}},{"$f":"SUMIFS(ExpOct[Importe],ExpOct[Categoría],ExpenseSummary[Gastos])","v":{"v":0,"d":"0.00"}},{"$f":"SUMIFS(ExpNov[Importe],ExpNov[Categoría],ExpenseSummary[Gastos])","v":{"v":0,"d":"0.00"}},{"$f":"SUMIFS(ExpDec[Importe],ExpDec[Categoría],ExpenseSummary[Gastos])","v":{"v":99,"d":"99.00"}},{"$f":"SUM(ExpenseSummary[[#This Row],[Ene]:[Dic]])","v":{"v":888,"d":"888.00"}}]
["Total",{"$f":"SUBTOTAL(109,ExpenseSummary[Ene])","v":{"v":861,"d":"861.00"}},{"$f":"SUBTOTAL(109,ExpenseSummary[Feb])","v":{"v":861,"d":"861.00"}},{"$f":"SUBTOTAL(109,ExpenseSummary[Mar])","v":{"v":574,"d":"574.00"}},{"$f":"SUBTOTAL(109,ExpenseSummary[Abr])","v":{"v":817,"d":"817.00"}},{"$f":"SUBTOTAL(109,ExpenseSummary[May])","v":{"v":977,"d":"977.00"}},{"$f":"SUBTOTAL(109,ExpenseSummary[Jun])","v":{"v":1049,"d":"1,049.00"}},{"$f":"SUBTOTAL(109,ExpenseSummary[Jul])","v":{"v":0,"d":"0.00"}},{"$f":"SUBTOTAL(109,ExpenseSummary[Ago])","v":{"v":0,"d":"0.00"}},{"$f":"SUBTOTAL(109,ExpenseSummary[Sep])","v":{"v":0,"d":"0.00"}},{"$f":"SUBTOTAL(109,ExpenseSummary[Oct])","v":{"v":0,"d":"0.00"}},{"$f":"SUBTOTAL(109,ExpenseSummary[Nov])","v":{"v":0,"d":"0.00"}},{"$f":"SUBTOTAL(109,ExpenseSummary[Dic])","v":{"v":1049,"d":"1,049.00"}},{"$f":"SUBTOTAL(109,ExpenseSummary[Total])","v":{"v":6188,"d":"6,188.00"}}]

{"sheet":"ene","index":2,"n_rows":9,"n_cols":5,"rows_kept":9,"merged":[[0,0,0,2]]}
["GASTOS DE ENERO",null,null,"Resumen","Sugerencias"]
["Fecha","N.º de pedido","Importe","Categoría","Descripción"]
[{"$f":"DATE(YEAR(TODAY()),1,4)","v":"2017-01-04"},"A-12345",{"v":33,"d":"33.00"},"Gasto 1","Suministros"]
[{"$f":"DATE(YEAR(TODAY()),1,5)","v":"2017-01-05"},"A-12346",{"v":238,"d":"238.00"},"Gasto 2"]
[null,null,{"v":342,"d":"342.00"},"Gasto 4"]
[null,null,{"v":110,"d":"110.00"},"Gasto 3"]
[null,null,{"v":84,"d":"84.00"},"Gasto 4"]
[null,null,{"v":54,"d":"54.00"},"Gasto 5"]
["Total",null,{"$f":"SUBTOTAL(109,ExpJan[Importe])","v":{"v":861,"d":"861.00"}}]

{"sheet":"feb","index":3,"n_rows":9,"n_cols":5,"rows_kept":9,"merged":[[0,0,0,2]]}
["GASTOS DE FEBRERO",null,null,"Resumen","Sugerencias"]
["Fecha","N.º de pedido","Importe","Categoría","Descripción"]
[{"$f":"DATE(YEAR(TODAY()),2,3)","v":"2017-02-03"},"A-12345",{"v":33,"d":"33.00"},"Gasto 1","Suministros"]
[{"$f":"DATE(YEAR(TODAY()),2,4)","v":"2017-02-04"},"A-12346",{"v":238,"d":"238.00"},"Gasto 2"]
[null,null,{"v":342,"d":"342.00"},"Gasto 1"]
[null,null,{"v":110,"d":"110.00"},"Gasto 3"]
[null,null,{"v":84,"d":"84.00"},"Gasto 4"]
[null,null,{"v":54,"d":"54.00"},"Gasto 5"]
["Total",null,{"$f":"SUBTOTAL(109,ExpFeb[Importe])","v":{"v":861,"d":"861.00"}}]

{"sheet":"mar","index":4,"n_rows":9,"n_cols":5,"rows_kept":9,"merged":[[0,0,0,2]]}
["GASTOS DE MARZO",null,null,"Resumen","Sugerencias"]
["Fecha","N.º de pedido","Importe","Categoría","Descripción"]
[{"$f":"DATE(YEAR(TODAY()),3,5)","v":"2017-03-05"},"A-12345",{"v":33,"d":"33.00"},"Gasto 1","Suministros"]
[{"$f":"DATE(YEAR(TODAY()),3,6)","v":"2017-03-06"},"A-12346",{"v":238,"d":"238.00"},"Gasto 2"]
[null,null,{"v":55,"d":"55.00"},"Gasto 5"]
[null,null,{"v":110,"d":"110.00"},"Gasto 3"]
[null,null,{"v":84,"d":"84.00"},"Gasto 4"]
[null,null,{"v":54,"d":"54.00"},"Gasto 5"]
["Total",null,{"$f":"SUBTOTAL(109,ExpMar[Importe])","v":{"v":574,"d":"574.00"}}]

{"sheet":"abr","index":5,"n_rows":9,"n_cols":5,"rows_kept":9,"merged":[[0,0,0,2]]}
["GASTOS DE ABRIL",null,null,"Resumen","Sugerencias"]
["Fecha","N.º de pedido","Importe","Categoría","Descripción"]
[{"$f":"DATE(YEAR(TODAY()),4,4)","v":"2017-04-04"},"A-12345",{"v":45,"d":"45.00"},"Gasto 1","Suministros"]
[{"$f":"DATE(YEAR(TODAY()),4,8)","v":"2017-04-08"},"A-12346",{"v":123,"d":"123.00"},"Gasto 2"]
[null,null,{"v":342,"d":"342.00"},"Gasto 4"]
[null,null,{"v":125,"d":"125.00"},"Gasto 3"]
[null,null,{"v":84,"d":"84.00"},"Gasto 4"]
[null,null,{"v":98,"d":"98.00"},"Gasto 5"]
["Total",null,{"$f":"SUBTOTAL(109,ExpApr[Importe])","v":{"v":817,"d":"817.00"}}]

{"sheet":"mayo","index":6,"n_rows":9,"n_cols":5,"rows_kept":9,"merged":[[0,0,0,2]]}
["GASTOS DE MAYO",null,null,"Resumen","Sugerencias"]
["Fecha","N.º de pedido","Importe","Categoría","Descripción"]
[{"$f":"DATE(YEAR(TODAY()),5,3)","v":"2017-05-03"},"A-12345",{"v":33,"d":"33.00"},"Gasto 1","Suministros"]
[{"$f":"DATE(YEAR(TODAY()),5,8)","v":"2017-05-08"},"A-12346",{"v":111,"d":"111.00"},"Gasto 2"]
[null,null,{"v":342,"d":"342.00"},"Gasto 1"]
[null,null,{"v":333,"d":"333.00"},"Gasto 3"]
[null,null,{"v":125,"d":"125.00"},"Gasto 4"]
[null,null,{"v":33,"d":"33.00"},"Gasto 5"]
["Total",null,{"$f":"SUBTOTAL(109,ExpMay[Importe])","v":{"v":977,"d":"977.00"}}]

{"sheet":"jun","index":7,"n_rows":9,"n_cols":5,"rows_kept":9,"merged":[[0,0,0,2]]}
["GASTOS DE JUNIO",null,null,"Resumen","Sugerencias"]
["Fecha","N.º de pedido","Importe","Categoría","Descripción"]
[{"$f":"DATE(YEAR(TODAY()),6,7)","v":"2017-06-07"},"A-12345",{"v":201,"d":"201.00"},"Gasto 1","Suministros"]
[{"$f":"DATE(YEAR(TODAY()),6,8)","v":"2017-06-08"},"A-12346",{"v":98,"d":"98.00"},"Gasto 2"]
[null,null,{"v":342,"d":"342.00"},"Gasto 5"]
[null,null,{"v":122,"d":"122.00"},"Gasto 3"]
[null,null,{"v":187,"d":"187.00"},"Gasto 4"]
[null,null,{"v":99,"d":"99.00"},"Gasto 5"]
["Total",null,{"$f":"SUBTOTAL(109,ExpJun[Importe])","v":{"v":1049,"d":"1,049.00"}}]

{"sheet":"jul","index":8,"n_rows":9,"n_cols":5,"rows_kept":9,"merged":[[0,0,0,2]]}
["GASTOS DE JULIO",null,null,"Resumen","Sugerencias"]
["Fecha","N.º de pedido","Importe","Categoría","Descripción"]
[{"$f":"DATE(YEAR(TODAY()),7,9)","v":"2017-07-09"},"A-12345",null,"Gasto 1","Suministros"]
[{"$f":"DATE(YEAR(TODAY()),7,14)","v":"2017-07-14"},"A-12346",null,"Gasto 2"]
[{"$nulls":3},"Gasto 2"]
[{"$nulls":3},"Gasto 3"]
[{"$nulls":3},"Gasto 4"]
[{"$nulls":3},"Gasto 5"]
["Total",null,{"$f":"SUBTOTAL(109,ExpJul[Importe])","v":{"v":0,"d":"0.00"}}]

{"sheet":"ago","index":9,"n_rows":9,"n_cols":5,"rows_kept":9,"merged":[[0,0,0,2]]}
["GASTOS DE AGOSTO",null,null,"Resumen","Sugerencias"]
["Fecha","N.º de pedido","Importe","Categoría","Descripción"]
[{"$f":"DATE(YEAR(TODAY()),8,8)","v":"2017-08-08"},"A-12345",null,"Gasto 1","Suministros"]
[{"$f":"DATE(YEAR(TODAY()),8,9)","v":"2017-08-09"},"A-12346",null,"Gasto 2"]
[{"$nulls":3},"Gasto 2"]
[{"$nulls":3},"Gasto 3"]
[{"$nulls":3},"Gasto 4"]
[{"$nulls":3},"Gasto 5"]
["Total",null,{"$f":"SUBTOTAL(109,ExpAug[Importe])","v":{"v":0,"d":"0.00"}}]

{"sheet":"sep","index":10,"n_rows":9,"n_cols":5,"rows_kept":9,"merged":[[0,0,0,2]]}
["GASTOS DE SEPTIEMBRE",null,null,"Resumen","Sugerencias"]
["Fecha","N.º de pedido","Importe","Categoría","Descripción"]
[{"$f":"DATE(YEAR(TODAY()),9,9)","v":"2017-09-09"},"A-12345",null,"Gasto 1","Suministros"]
[{"$f":"DATE(YEAR(TODAY()),9,15)","v":"2017-09-15"},"A-12346",null,"Gasto 2"]
[{"$nulls":3},"Gasto 2"]
[{"$nulls":3},"Gasto 3"]
[{"$nulls":3},"Gasto 4"]
[{"$nulls":3},"Gasto 5"]
["Total",null,{"$f":"SUBTOTAL(109,ExpSep[Importe])","v":{"v":0,"d":"0.00"}}]

{"sheet":"oct","index":11,"n_rows":9,"n_cols":5,"rows_kept":9,"merged":[[0,0,0,2]]}
["GASTOS DE OCTUBRE",null,null,"Resumen","Sugerencias"]
["Fecha","N.º de pedido","Importe","Categoría","Descripción"]
[{"$f":"DATE(YEAR(TODAY()),10,10)","v":"2017-10-10"},"A-12345",null,"Gasto 1","Suministros"]
[{"$f":"DATE(YEAR(TODAY()),10,21)","v":"2017-10-21"},"A-12346",null,"Gasto 2"]
[{"$nulls":3},"Gasto 2"]
[{"$nulls":3},"Gasto 3"]
[{"$nulls":3},"Gasto 4"]
[{"$nulls":3},"Gasto 5"]
["Total",null,{"$f":"SUBTOTAL(109,ExpOct[Importe])","v":{"v":0,"d":"0.00"}}]

{"sheet":"nov","index":12,"n_rows":9,"n_cols":5,"rows_kept":9,"merged":[[0,0,0,2]]}
["GASTOS DE NOVIEMBRE",null,null,"Resumen","Sugerencias"]
["Fecha","N.º de pedido","Importe","Categoría","Descripción"]
[{"$f":"DATE(YEAR(TODAY()),11,14)","v":"2017-11-14"},"A-12345",null,"Gasto 1","Suministros"]
[{"$f":"DATE(YEAR(TODAY()),11,21)","v":"2017-11-21"},"A-12346",null,"Gasto 2"]
[{"$nulls":3},"Gasto 2"]
[{"$nulls":3},"Gasto 3"]
[{"$nulls":3},"Gasto 4"]
[{"$nulls":3},"Gasto 5"]
["Total",null,{"$f":"SUBTOTAL(109,ExpNov[Importe])","v":{"v":0,"d":"0.00"}}]

{"sheet":"dic","index":13,"n_rows":9,"n_cols":5,"rows_kept":9,"merged":[[0,0,0,2]]}
["GASTOS DE DICIEMBRE",null,null,"Resumen","Sugerencias"]
["Fecha","N.º de pedido","Importe","Categoría","Descripción"]
[{"$f":"DATE(YEAR(TODAY()),12,2)","v":"2017-12-02"},"A-12345",{"v":201,"d":"201.00"},"Gasto 1","Suministros"]
[{"$f":"DATE(YEAR(TODAY()),12,24)","v":"2017-12-24"},"A-12346",{"v":98,"d":"98.00"},"Gasto 2"]
[null,null,{"v":342,"d":"342.00"},"Gasto 2"]
[null,null,{"v":122,"d":"122.00"},"Gasto 3"]
[null,null,{"v":187,"d":"187.00"},"Gasto 4"]
[null,null,{"v":99,"d":"99.00"},"Gasto 5"]
["Total",null,{"$f":"SUBTOTAL(109,ExpDec[Importe])","v":{"v":1049,"d":"1,049.00"}}]